[Event "*** SCC Grand Prix: Titled Tuesday Blitz"]
[Site "Chess.com"]
[Date "2020.07.14"]
[Round "7"]
[White "PavelChernomordik"]
[Black "Mbneu"]
[Result "1/2-1/2"]
[WhiteElo "2339"]
[BlackElo "2215"]
[TimeControl "180+1"]
[EndTime "11:20:02 PDT"]
[Termination "Game drawn by repetition"]

1. e4 {[%clk 0:03:00.9]} 1... c5 {[%clk 0:02:59.8]} 2. Nc3 {[%clk 0:02:58.4]}
2... a6 {[%clk 0:02:58.1]} 3. f4 {[%clk 0:02:57.8]} 3... b5 {[%clk 0:02:57.2]}
4. g3 {[%clk 0:02:57.1]} 4... Bb7 {[%clk 0:02:56.8]} 5. Qe2 {[%clk 0:02:56.3]}
5... b4 {[%clk 0:02:54.2]} 6. Nd1 {[%clk 0:02:55.2]} 6... e6 {[%clk 0:02:53.1]}
7. Bg2 {[%clk 0:02:54.2]} 7... Nf6 {[%clk 0:02:52.3]} 8. e5 {[%clk 0:02:47.3]}
8... Bxg2 {[%clk 0:02:46.3]} 9. Qxg2 {[%clk 0:02:45.4]} 9... Nd5 {[%clk
0:02:46.8]} 10. c4 {[%clk 0:02:42.7]} 10... bxc3 {[%clk 0:02:45.1]} 11. dxc3
{[%clk 0:02:40.8]} 11... Nc6 {[%clk 0:02:40.9]} 12. Nf3 {[%clk 0:02:38.8]} 12...
Be7 {[%clk 0:02:39.4]} 13. O-O {[%clk 0:02:38.1]} 13... O-O {[%clk 0:02:37.3]}
14. Ne3 {[%clk 0:02:37.5]} 14... Nxe3 {[%clk 0:02:08.5]} 15. Bxe3 {[%clk
0:02:34.8]} 15... f6 {[%clk 0:02:09.1]} 16. Rad1 {[%clk 0:02:26.8]} 16... fxe5
{[%clk 0:02:05.3]} 17. Nxe5 {[%clk 0:02:15.9]} 17... Nxe5 {[%clk 0:02:01]} 18.
fxe5 {[%clk 0:02:14.7]} 18... Qc7 {[%clk 0:01:59]} 19. Qe4 {[%clk 0:02:08.1]}
19... Rxf1+ {[%clk 0:01:49.5]} 20. Rxf1 {[%clk 0:02:06.5]} 20... Rf8 {[%clk
0:01:50]} 21. Rd1 {[%clk 0:01:59.7]} 21... Rf5 {[%clk 0:01:45.6]} 22. Bf4 {[%clk
0:01:51.1]} 22... g5 {[%clk 0:01:44.4]} 23. Qa8+ {[%clk 0:01:34.2]} 23... Kf7
{[%clk 0:01:36.7]} 24. Be3 {[%clk 0:01:29.6]} 24... Qxe5 {[%clk 0:01:32.7]} 25.
Re1 {[%clk 0:01:24.6]} 25... c4 {[%clk 0:01:24.5]} 26. Bf2 {[%clk 0:01:13.4]}
26... Qd5 {[%clk 0:01:24.5]} 27. Qxd5 {[%clk 0:00:59.9]} 27... exd5 {[%clk
0:01:23.2]} 28. Kg2 {[%clk 0:00:55.6]} 28... Bf6 {[%clk 0:01:15.8]} 29. g4
{[%clk 0:00:50.2]} 29... Rf4 {[%clk 0:01:13.6]} 30. h3 {[%clk 0:00:49.5]} 30...
Re4 {[%clk 0:01:07]} 31. Rd1 {[%clk 0:00:48.1]} 31... Ke6 {[%clk 0:01:06.3]} 32.
Kf3 {[%clk 0:00:48.1]} 32... Rf4+ {[%clk 0:00:58.4]} 33. Kg3 {[%clk 0:00:46.8]}
33... h6 {[%clk 0:00:56.5]} 34. Be3 {[%clk 0:00:45]} 34... Re4 {[%clk
0:00:55.9]} 35. Kf3 {[%clk 0:00:44.6]} 35... Be5 {[%clk 0:00:54.7]} 36. Rh1
{[%clk 0:00:40.4]} 36... Bf4 {[%clk 0:00:38.5]} 37. Bd4 {[%clk 0:00:40]} 37...
Kd6 {[%clk 0:00:37.9]} 38. h4 {[%clk 0:00:38.6]} 38... Kc6 {[%clk 0:00:36.6]}
39. hxg5 {[%clk 0:00:37.7]} 39... Bxg5 {[%clk 0:00:36.4]} 40. Rd1 {[%clk
0:00:32.2]} 40... Rf4+ {[%clk 0:00:34.1]} 41. Kg3 {[%clk 0:00:31.1]} 41... Re4
{[%clk 0:00:31.9]} 42. Kf3 {[%clk 0:00:30.3]} 42... a5 {[%clk 0:00:28.5]} 43. a4
{[%clk 0:00:28]} 43... Be7 {[%clk 0:00:21.8]} 44. Be3 {[%clk 0:00:26.1]} 44...
Bg5 {[%clk 0:00:19.9]} 45. Bd4 {[%clk 0:00:25.8]} 45... Re6 {[%clk 0:00:18.9]}
46. Rh1 {[%clk 0:00:21.1]} 46... Re4 {[%clk 0:00:17.3]} 47. Rd1 {[%clk
0:00:19.8]} 1/2-1/2

[Event "*** SCC Grand Prix: Titled Tuesday Blitz"]
[Site "Chess.com"]
[Date "2020.07.14"]
[Round "7"]
[White "FairChess_on_YouTube"]
[Black "AryanTari"]
[Result "1-0"]
[WhiteElo "3000"]
[BlackElo "2876"]
[TimeControl "180+1"]
[EndTime "11:20:03 PDT"]
[Termination "FairChess_on_YouTube won on time"]

1. e4 {[%clk 0:03:00.9]} 1... e5 {[%clk 0:02:56.3]} 2. Nf3 {[%clk 0:03:00.8]}
2... Nc6 {[%clk 0:02:56]} 3. Nc3 {[%clk 0:03:01.3]} 3... Nf6 {[%clk 0:02:55.8]}
4. Bb5 {[%clk 0:03:01.5]} 4... Nd4 {[%clk 0:02:52.8]} 5. O-O {[%clk 0:03:01.1]}
5... Nxb5 {[%clk 0:02:37.1]} 6. Nxb5 {[%clk 0:03:02]} 6... c6 {[%clk 0:02:36.2]}
7. Nc3 {[%clk 0:03:02.2]} 7... d6 {[%clk 0:02:36.1]} 8. d4 {[%clk 0:03:02.8]}
8... Qc7 {[%clk 0:02:36.6]} 9. a4 {[%clk 0:03:02.9]} 9... a5 {[%clk 0:02:35.5]}
10. b3 {[%clk 0:03:02.5]} 10... Be7 {[%clk 0:02:35.6]} 11. Bb2 {[%clk
0:03:02.5]} 11... O-O {[%clk 0:02:34.5]} 12. Qd3 {[%clk 0:03:01.4]} 12... Re8
{[%clk 0:02:29.1]} 13. Rad1 {[%clk 0:02:58.6]} 13... Bg4 {[%clk 0:02:22.1]} 14.
h3 {[%clk 0:02:53]} 14... Bh5 {[%clk 0:02:22.2]} 15. dxe5 {[%clk 0:02:45]} 15...
dxe5 {[%clk 0:02:21]} 16. Ne2 {[%clk 0:02:39]} 16... Bc5 {[%clk 0:01:44.4]} 17.
Ng3 {[%clk 0:02:33.2]} 17... Bg6 {[%clk 0:01:37]} 18. Nh4 {[%clk 0:02:30.9]}
18... Rad8 {[%clk 0:01:32.4]} 19. Qc4 {[%clk 0:02:12.2]} 19... Bf8 {[%clk
0:00:55.7]} 20. Bc3 {[%clk 0:02:05.6]} 20... Nd7 {[%clk 0:00:44.6]} 21. Ngf5
{[%clk 0:01:58.1]} 21... Nc5 {[%clk 0:00:40.8]} 22. Nxg6 {[%clk 0:01:36.9]}
22... hxg6 {[%clk 0:00:39.1]} 23. Ne3 {[%clk 0:01:37.5]} 23... Ne6 {[%clk
0:00:27.4]} 24. Ng4 {[%clk 0:01:29.7]} 24... Bd6 {[%clk 0:00:20.1]} 25. Rd2
{[%clk 0:01:24.8]} 25... b5 {[%clk 0:00:17.5]} 26. axb5 {[%clk 0:01:01.2]} 26...
cxb5 {[%clk 0:00:18]} 27. Qxb5 {[%clk 0:01:00.9]} 27... Qxc3 {[%clk 0:00:13.8]}
28. Rxd6 {[%clk 0:01:00.9]} 28... Nd4 {[%clk 0:00:08.7]} 29. Rxd8 {[%clk
0:00:49.4]} 29... Rxd8 {[%clk 0:00:08.5]} 30. Qxe5 {[%clk 0:00:48.7]} 30... Qxc2
{[%clk 0:00:04.6]} 31. Qxa5 {[%clk 0:00:47.3]} 31... Ne2+ {[%clk 0:00:03]} 32.
Kh2 {[%clk 0:00:44.7]} 32... Rb8 {[%clk 0:00:03.2]} 33. Ra1 {[%clk 0:00:20.6]}
33... Qxe4 {[%clk 0:00:02.9]} 34. Qc7 {[%clk 0:00:15.5]} 34... Re8 {[%clk
0:00:03.2]} 35. Ra7 {[%clk 0:00:14.1]} 35... Rf8 {[%clk 0:00:02.6]} 36. Qe5
{[%clk 0:00:13.3]} 36... Qd3 {[%clk 0:00:02.1]} 37. Re7 {[%clk 0:00:10.4]} 37...
Nc3 {[%clk 0:00:02.1]} 38. Re8 {[%clk 0:00:10.2]} 1-0

[Event "*** SCC Grand Prix: Titled Tuesday Blitz"]
[Site "Chess.com"]
[Date "2020.07.14"]
[Round "7"]
[White "Ashedu66"]
[Black "ZverevLev"]
[Result "1-0"]
[WhiteElo "2199"]
[BlackElo "2323"]
[TimeControl "180+1"]
[EndTime "11:20:04 PDT"]
[Termination "Ashedu66 won on time"]

1. d4 {[%clk 0:03:00.9]} 1... Nf6 {[%clk 0:02:56.4]} 2. Nf3 {[%clk 0:03:00.1]}
2... e6 {[%clk 0:02:53.8]} 3. c4 {[%clk 0:03:00.1]} 3... d5 {[%clk 0:02:47.2]}
4. Nc3 {[%clk 0:02:59.4]} 4... dxc4 {[%clk 0:02:45]} 5. e4 {[%clk 0:02:55.4]}
5... b5 {[%clk 0:02:43.2]} 6. e5 {[%clk 0:02:53.5]} 6... Nd5 {[%clk 0:02:40.8]}
7. Nxb5 {[%clk 0:02:46.5]} 7... Nb6 {[%clk 0:02:40.5]} 8. Nc3 {[%clk 0:02:39.8]}
8... Nc6 {[%clk 0:02:36]} 9. Bg5 {[%clk 0:02:22.1]} 9... Be7 {[%clk 0:02:25.1]}
10. Bxe7 {[%clk 0:02:21.6]} 10... Qxe7 {[%clk 0:02:26]} 11. Be2 {[%clk
0:02:17.3]} 11... Bb7 {[%clk 0:02:24.5]} 12. O-O {[%clk 0:02:15.2]} 12... O-O-O
{[%clk 0:02:23.5]} 13. a4 {[%clk 0:02:07.7]} 13... Na5 {[%clk 0:02:13.5]} 14.
Qc2 {[%clk 0:01:29.8]} 14... Nb3 {[%clk 0:02:07.5]} 15. a5 {[%clk 0:01:22.3]}
15... Nxa1 {[%clk 0:02:01.3]} 16. Rxa1 {[%clk 0:01:21.8]} 16... Nd5 {[%clk
0:01:58.4]} 17. a6 {[%clk 0:01:05.7]} 17... Bc6 {[%clk 0:01:54.7]} 18. Bxc4
{[%clk 0:01:01.2]} 18... Nf4 {[%clk 0:01:50.9]} 19. Ne4 {[%clk 0:00:56.2]} 19...
Ba8 {[%clk 0:01:41.1]} 20. Bf1 {[%clk 0:00:43.7]} 20... g5 {[%clk 0:01:15.2]}
21. Rc1 {[%clk 0:00:39.9]} 21... g4 {[%clk 0:01:12.7]} 22. Nfd2 {[%clk
0:00:29.3]} 22... Rhg8 {[%clk 0:01:03.2]} 23. Nc5 {[%clk 0:00:23.9]} 23... Nh3+
{[%clk 0:00:56.4]} 24. Kh1 {[%clk 0:00:19.2]} 24... Nxf2+ {[%clk 0:00:54]} 25.
Kg1 {[%clk 0:00:19.3]} 25... Nh3+ {[%clk 0:00:54.9]} 26. Kh1 {[%clk 0:00:19.2]}
26... Rxd4 {[%clk 0:00:52.5]} 27. Ndb3 {[%clk 0:00:17.8]} 27... Rf4 {[%clk
0:00:28.2]} 28. Nb7 {[%clk 0:00:16.1]} 28... Nf2+ {[%clk 0:00:23.6]} 29. Kg1
{[%clk 0:00:15.5]} 29... g3 {[%clk 0:00:21.5]} 30. h3 {[%clk 0:00:12.1]} 30...
Bxb7 {[%clk 0:00:15.1]} 31. axb7+ {[%clk 0:00:11.6]} 31... Kxb7 {[%clk
0:00:14.8]} 32. Na5+ {[%clk 0:00:11.4]} 32... Kb8 {[%clk 0:00:15.3]} 33. Qc6
{[%clk 0:00:11.2]} 33... Kc8 {[%clk 0:00:16.2]} 34. Qa8+ {[%clk 0:00:10.3]}
34... Kd7 {[%clk 0:00:14.4]} 35. Bb5+ {[%clk 0:00:09.7]} 1-0

[Event "*** SCC Grand Prix: Titled Tuesday Blitz"]
[Site "Chess.com"]
[Date "2020.07.14"]
[Round "7"]
[White "dodorox"]
[Black "ChessBitl"]
[Result "0-1"]
[WhiteElo "2130"]
[BlackElo "2307"]
[TimeControl "180+1"]
[EndTime "11:20:05 PDT"]
[Termination "ChessBitl won on time"]

1. d4 {[%clk 0:03:00.9]} 1... Nf6 {[%clk 0:02:59.2]} 2. c4 {[%clk 0:02:59.9]}
2... g6 {[%clk 0:02:59.6]} 3. Nc3 {[%clk 0:02:59.9]} 3... Bg7 {[%clk 0:03:00]}
4. e4 {[%clk 0:03:00.1]} 4... d6 {[%clk 0:03:00.5]} 5. Nf3 {[%clk 0:02:59.9]}
5... O-O {[%clk 0:03:01]} 6. h3 {[%clk 0:03:00.1]} 6... e5 {[%clk 0:03:00.1]} 7.
d5 {[%clk 0:03:00.3]} 7... a5 {[%clk 0:02:59.7]} 8. Be3 {[%clk 0:02:59.1]} 8...
Na6 {[%clk 0:02:59.8]} 9. g4 {[%clk 0:02:57.9]} 9... Nc5 {[%clk 0:02:59.4]} 10.
Nd2 {[%clk 0:02:57.7]} 10... Ne8 {[%clk 0:02:49.5]} 11. Rg1 {[%clk 0:02:35.4]}
11... Bf6 {[%clk 0:02:46.7]} 12. g5 {[%clk 0:02:30.6]} 12... Bg7 {[%clk
0:02:46]} 13. h4 {[%clk 0:02:31]} 13... f5 {[%clk 0:02:45.6]} 14. h5 {[%clk
0:02:00.8]} 14... Rf7 {[%clk 0:02:34.5]} 15. Qc2 {[%clk 0:01:09]} 15... f4
{[%clk 0:02:31.6]} 16. Bxc5 {[%clk 0:01:08.3]} 16... dxc5 {[%clk 0:02:32.2]} 17.
hxg6 {[%clk 0:01:04.4]} 17... hxg6 {[%clk 0:02:31.7]} 18. Be2 {[%clk 0:00:59]}
18... Nd6 {[%clk 0:02:31.7]} 19. O-O-O {[%clk 0:00:56.7]} 19... Bd7 {[%clk
0:02:24.9]} 20. Bg4 {[%clk 0:00:49.1]} 20... Bxg4 {[%clk 0:02:19.6]} 21. Rxg4
{[%clk 0:00:49.1]} 21... Qd7 {[%clk 0:02:19]} 22. Rh4 {[%clk 0:00:44.8]} 22...
Kf8 {[%clk 0:02:18.1]} 23. Rdh1 {[%clk 0:00:42]} 23... Ke7 {[%clk 0:02:17.7]}
24. Qd3 {[%clk 0:00:27.9]} 24... Rg8 {[%clk 0:02:14.7]} 25. Rh7 {[%clk
0:00:23.6]} 25... Bf8 {[%clk 0:02:11.3]} 26. Nf3 {[%clk 0:00:21]} 26... Qg4
{[%clk 0:01:48.2]} 27. Nxe5 {[%clk 0:00:15.6]} 27... Qg2 {[%clk 0:01:46.4]} 28.
Rxf7+ {[%clk 0:00:13.8]} 28... Nxf7 {[%clk 0:01:43.1]} 29. Rh7 {[%clk
0:00:13.6]} 29... Qg1+ {[%clk 0:01:41.1]} 30. Nd1 {[%clk 0:00:13.4]} 30... Rg7
{[%clk 0:01:37.3]} 31. Rxg7 {[%clk 0:00:12.9]} 31... Bxg7 {[%clk 0:01:37.7]} 32.
Nxf7 {[%clk 0:00:13.4]} 32... Kxf7 {[%clk 0:01:37.5]} 33. Qh3 {[%clk 0:00:14.1]}
33... Qe1 {[%clk 0:01:19.1]} 34. Qe6+ {[%clk 0:00:12.7]} 34... Kf8 {[%clk
0:01:19]} 35. Qxg6 {[%clk 0:00:10.7]} 35... Bxb2+ {[%clk 0:01:13.5]} 36. Kxb2
{[%clk 0:00:09.7]} 36... Qd2+ {[%clk 0:01:13.9]} 37. Kb1 {[%clk 0:00:07.3]}
37... Qxd1+ {[%clk 0:01:13.9]} 38. Kb2 {[%clk 0:00:07.7]} 38... Qd2+ {[%clk
0:01:14.3]} 39. Kb1 {[%clk 0:00:08]} 39... Qe1+ {[%clk 0:01:13.7]} 40. Kb2
{[%clk 0:00:06.5]} 40... Qxf2+ {[%clk 0:01:14]} 41. Kb1 {[%clk 0:00:06.8]} 41...
Qf1+ {[%clk 0:01:13.3]} 42. Kb2 {[%clk 0:00:07.1]} 42... Qe2+ {[%clk 0:01:13.3]}
43. Kb1 {[%clk 0:00:07.4]} 43... Qd1+ {[%clk 0:01:12.6]} 44. Kb2 {[%clk
0:00:07.7]} 44... Qd4+ {[%clk 0:01:10.5]} 45. Kb1 {[%clk 0:00:05.8]} 45... Qd3+
{[%clk 0:01:09.8]} 46. Kb2 {[%clk 0:00:05.7]} 46... Qd4+ {[%clk 0:01:02]} 47.
Kb1 {[%clk 0:00:06.1]} 47... f3 {[%clk 0:01:02.3]} 48. Qf5+ {[%clk 0:00:05.8]}
48... Kg7 {[%clk 0:01:01.8]} 49. Qxf3 {[%clk 0:00:05.4]} 49... a4 {[%clk
0:00:58.3]} 50. Qf6+ {[%clk 0:00:03.9]} 50... Qxf6 {[%clk 0:00:57.8]} 51. gxf6+
{[%clk 0:00:04.6]} 51... Kxf6 {[%clk 0:00:58.3]} 52. Kc2 {[%clk 0:00:05]} 52...
Ke5 {[%clk 0:00:58.6]} 53. Kd3 {[%clk 0:00:05.3]} 53... a3 {[%clk 0:00:56.3]}
54. Ke3 {[%clk 0:00:05]} 54... b6 {[%clk 0:00:55.8]} 55. Kd3 {[%clk 0:00:02.4]}
55... Kf4 {[%clk 0:00:56.1]} 56. Kc3 {[%clk 0:00:01.4]} 56... Kxe4 {[%clk
0:00:56.2]} 57. Kb3 {[%clk 0:00:02.1]} 57... Kd4 {[%clk 0:00:56.7]} 0-1

[Event "*** SCC Grand Prix: Titled Tuesday Blitz"]
[Site "Chess.com"]
[Date "2020.07.14"]
[Round "7"]
[White "MateSchmate"]
[Black "tsvet2005"]
[Result "0-1"]
[WhiteElo "2407"]
[BlackElo "2589"]
[TimeControl "180+1"]
[EndTime "11:20:06 PDT"]
[Termination "tsvet2005 won by checkmate"]

1. e4 {[%clk 0:03:00.9]} 1... c5 {[%clk 0:02:59.8]} 2. Be2 {[%clk 0:03:00.7]}
2... g6 {[%clk 0:02:57.1]} 3. f4 {[%clk 0:03:00.4]} 3... Bg7 {[%clk 0:02:56.9]}
4. Nf3 {[%clk 0:03:00.5]} 4... d6 {[%clk 0:02:50.8]} 5. d3 {[%clk 0:02:58.9]}
5... Nc6 {[%clk 0:02:51.2]} 6. c3 {[%clk 0:02:58.9]} 6... Nf6 {[%clk 0:02:50.2]}
7. O-O {[%clk 0:02:59.3]} 7... O-O {[%clk 0:02:50]} 8. Na3 {[%clk 0:02:57.5]}
8... Rb8 {[%clk 0:02:47.2]} 9. Be3 {[%clk 0:02:55.8]} 9... b5 {[%clk 0:02:36.6]}
10. Nc2 {[%clk 0:02:54.8]} 10... b4 {[%clk 0:02:33.4]} 11. h3 {[%clk 0:02:53.2]}
11... bxc3 {[%clk 0:02:30.5]} 12. bxc3 {[%clk 0:02:54.1]} 12... Nh5 {[%clk
0:02:31]} 13. Qe1 {[%clk 0:02:52.2]} 13... Qa5 {[%clk 0:02:19]} 14. d4 {[%clk
0:02:39.2]} 14... cxd4 {[%clk 0:02:07.9]} 15. cxd4 {[%clk 0:02:40.1]} 15... Qxe1
{[%clk 0:02:08.1]} 16. Rfxe1 {[%clk 0:02:40.3]} 16... Bh6 {[%clk 0:01:09.2]} 17.
f5 {[%clk 0:02:23.2]} 17... Bxe3+ {[%clk 0:01:10.1]} 18. Nxe3 {[%clk 0:02:23.4]}
18... gxf5 {[%clk 0:01:07.9]} 19. Nxf5 {[%clk 0:02:23.2]} 19... Bxf5 {[%clk
0:00:47.5]} 20. exf5 {[%clk 0:02:24.1]} 20... Nf4 {[%clk 0:00:45.4]} 21. Bc4
{[%clk 0:02:20.8]} 21... Rb4 {[%clk 0:00:40.4]} 22. Rac1 {[%clk 0:02:16.8]}
22... Na5 {[%clk 0:00:24.5]} 23. Bf1 {[%clk 0:02:12.6]} 23... Rb2 {[%clk
0:00:24.6]} 24. g3 {[%clk 0:02:10.4]} 24... Nd5 {[%clk 0:00:24.2]} 25. Re2
{[%clk 0:01:59.7]} 25... Rfb8 {[%clk 0:00:22]} 26. Rcc2 {[%clk 0:01:57.7]} 26...
Rxc2 {[%clk 0:00:20.7]} 27. Rxc2 {[%clk 0:01:58.6]} 27... Rb1 {[%clk 0:00:18.6]}
28. Re2 {[%clk 0:01:34.9]} 28... Nc4 {[%clk 0:00:14.7]} 29. Kf2 {[%clk
0:01:32.3]} 29... Nce3 {[%clk 0:00:13.3]} 30. Nd2 {[%clk 0:01:20.1]} 30... Rd1
{[%clk 0:00:05.5]} 31. Rxe3 {[%clk 0:01:15.2]} 31... Rxd2+ {[%clk 0:00:05.6]}
32. Re2 {[%clk 0:01:15.4]} 32... Rxd4 {[%clk 0:00:05.4]} 33. Bg2 {[%clk
0:01:06.6]} 33... Kf8 {[%clk 0:00:05.8]} 34. Rb2 {[%clk 0:01:02.6]} 34... Nb6
{[%clk 0:00:05.1]} 35. Bf3 {[%clk 0:00:58.8]} 35... Rc4 {[%clk 0:00:05.2]} 36.
g4 {[%clk 0:00:55.8]} 36... Rc5 {[%clk 0:00:05.3]} 37. Kg3 {[%clk 0:00:51.7]}
37... e6 {[%clk 0:00:05.4]} 38. Be4 {[%clk 0:00:43.8]} 38... d5 {[%clk 0:00:04]}
39. Bb1 {[%clk 0:00:41.1]} 39... h6 {[%clk 0:00:04.7]} 40. h4 {[%clk 0:00:38.3]}
40... Ke7 {[%clk 0:00:05]} 41. Rb4 {[%clk 0:00:31.4]} 41... Rc4 {[%clk
0:00:04.6]} 42. Rb5 {[%clk 0:00:29.2]} 42... Rc3+ {[%clk 0:00:04.9]} 43. Kf4
{[%clk 0:00:27.4]} 43... Kd6 {[%clk 0:00:04.7]} 44. f6 {[%clk 0:00:20.4]} 44...
e5+ {[%clk 0:00:03.7]} 45. Kf5 {[%clk 0:00:19.3]} 45... Rf3# {[%clk 0:00:04.1]}
0-1

[Event "*** SCC Grand Prix: Titled Tuesday Blitz"]
[Site "Chess.com"]
[Date "2020.07.14"]
[Round "7"]
[White "Sanan_Sjugirov"]
[Black "Igor_Lysyj"]
[Result "1-0"]
[WhiteElo "2977"]
[BlackElo "2803"]
[TimeControl "180+1"]
[EndTime "11:20:08 PDT"]
[Termination "Sanan_Sjugirov won on time"]

1. d4 {[%clk 0:03:00.9]} 1... d5 {[%clk 0:02:59.4]} 2. c4 {[%clk 0:02:59.6]}
2... e6 {[%clk 0:02:59.8]} 3. Nf3 {[%clk 0:02:58.9]} 3... dxc4 {[%clk
0:03:00.1]} 4. e4 {[%clk 0:02:43.2]} 4... b5 {[%clk 0:02:58.9]} 5. a4 {[%clk
0:02:39.9]} 5... c6 {[%clk 0:02:52.9]} 6. Nc3 {[%clk 0:02:35.7]} 6... Bb4 {[%clk
0:02:40.9]} 7. Be2 {[%clk 0:02:24.3]} 7... Bb7 {[%clk 0:02:39]} 8. O-O {[%clk
0:02:22.9]} 8... a6 {[%clk 0:02:35.1]} 9. d5 {[%clk 0:01:48.8]} 9... cxd5 {[%clk
0:02:16.5]} 10. axb5 {[%clk 0:01:45.5]} 10... axb5 {[%clk 0:02:06.7]} 11. Rxa8
{[%clk 0:01:44.5]} 11... Bxa8 {[%clk 0:02:06.3]} 12. Nxb5 {[%clk 0:01:42.4]}
12... Ne7 {[%clk 0:01:53.4]} 13. Qa4 {[%clk 0:01:40.2]} 13... Nbc6 {[%clk
0:01:53.2]} 14. exd5 {[%clk 0:01:22.9]} 14... exd5 {[%clk 0:01:48.7]} 15. Rd1
{[%clk 0:01:07.7]} 15... O-O {[%clk 0:01:34.8]} 16. Bxc4 {[%clk 0:01:07.4]}
16... Qb6 {[%clk 0:01:30.9]} 17. Be3 {[%clk 0:01:00.5]} 17... Bc5 {[%clk
0:01:25.3]} 18. Bxc5 {[%clk 0:00:59.5]} 18... Qxc5 {[%clk 0:01:25.5]} 19. Bf1
{[%clk 0:00:59.9]} 19... Bb7 {[%clk 0:01:16.4]} 20. Qf4 {[%clk 0:00:51.7]} 20...
Ba6 {[%clk 0:01:05.4]} 21. Nbd4 {[%clk 0:00:31.9]} 21... Bxf1 {[%clk 0:01:03.3]}
22. Rxf1 {[%clk 0:00:32.5]} 22... Qb4 {[%clk 0:00:55.1]} 23. Qe3 {[%clk
0:00:04.2]} 23... Qxb2 {[%clk 0:00:49.4]} 24. Nxc6 {[%clk 0:00:04.3]} 24... Nxc6
{[%clk 0:00:48.7]} 25. Qc5 {[%clk 0:00:05.2]} 25... Nb4 {[%clk 0:00:31.4]} 26.
h3 {[%clk 0:00:05.4]} 26... h6 {[%clk 0:00:27.4]} 27. Rd1 {[%clk 0:00:03.1]}
27... Qb3 {[%clk 0:00:20.5]} 28. Rd2 {[%clk 0:00:02.9]} 28... Qb1+ {[%clk
0:00:19.3]} 29. Kh2 {[%clk 0:00:03.1]} 29... Ra8 {[%clk 0:00:15.2]} 30. Qb5
{[%clk 0:00:03.2]} 30... Qb3 {[%clk 0:00:10.1]} 31. Rd4 {[%clk 0:00:03]} 31...
Ra4 {[%clk 0:00:08.6]} 32. Qb8+ {[%clk 0:00:02.8]} 32... Kh7 {[%clk 0:00:08.3]}
33. Rh4 {[%clk 0:00:03.4]} 33... f6 {[%clk 0:00:07.7]} 34. Rg4 {[%clk
0:00:03.4]} 34... h5 {[%clk 0:00:03.8]} 35. Rh4 {[%clk 0:00:03.3]} 35... Qd3
{[%clk 0:00:02.3]} 36. Qe8 {[%clk 0:00:03.3]} 1-0

[Event "*** SCC Grand Prix: Titled Tuesday Blitz"]
[Site "Chess.com"]
[Date "2020.07.14"]
[Round "7"]
[White "StephenDedalus83"]
[Black "Mikhail_Golubev"]
[Result "1-0"]
[WhiteElo "2811"]
[BlackElo "2594"]
[TimeControl "180+1"]
[EndTime "11:20:10 PDT"]
[Termination "StephenDedalus83 won on time"]

1. e4 {[%clk 0:03:00.9]} 1... c5 {[%clk 0:02:59.6]} 2. Nf3 {[%clk 0:03:00.8]}
2... d6 {[%clk 0:02:59.8]} 3. d4 {[%clk 0:03:00.8]} 3... cxd4 {[%clk 0:03:00]}
4. Nxd4 {[%clk 0:03:01.7]} 4... Nf6 {[%clk 0:03:00.1]} 5. Nc3 {[%clk 0:03:01.7]}
5... g6 {[%clk 0:03:00.2]} 6. Be3 {[%clk 0:03:01.5]} 6... Bg7 {[%clk 0:03:00.5]}
7. f3 {[%clk 0:03:01.8]} 7... a6 {[%clk 0:02:54.7]} 8. Qd2 {[%clk 0:02:57.4]}
8... Nbd7 {[%clk 0:02:54.6]} 9. O-O-O {[%clk 0:02:52]} 9... b5 {[%clk
0:02:48.6]} 10. g4 {[%clk 0:02:51.6]} 10... Bb7 {[%clk 0:02:48.3]} 11. h4 {[%clk
0:02:50.9]} 11... b4 {[%clk 0:02:24.8]} 12. Nce2 {[%clk 0:02:49.7]} 12... Qa5
{[%clk 0:02:10.8]} 13. Kb1 {[%clk 0:02:48.4]} 13... Nc5 {[%clk 0:02:08.9]} 14.
Ng3 {[%clk 0:02:44.5]} 14... h5 {[%clk 0:02:04.2]} 15. g5 {[%clk 0:02:43.8]}
15... Nfd7 {[%clk 0:02:03.9]} 16. a3 {[%clk 0:02:38.4]} 16... Qc7 {[%clk
0:01:41]} 17. Qxb4 {[%clk 0:02:24.7]} 17... O-O {[%clk 0:01:39.5]} 18. Qe1
{[%clk 0:01:57.7]} 18... Rab8 {[%clk 0:01:34.3]} 19. Rh2 {[%clk 0:01:46.4]}
19... Rfc8 {[%clk 0:01:33.1]} 20. Bc4 {[%clk 0:01:38.1]} 20... Ne5 {[%clk
0:01:30.1]} 21. Bb3 {[%clk 0:01:32.3]} 21... a5 {[%clk 0:01:20.9]} 22. Nb5
{[%clk 0:01:07.7]} 22... Qd7 {[%clk 0:01:12.2]} 23. Qxa5 {[%clk 0:00:51.7]}
23... Nxf3 {[%clk 0:00:55.9]} 24. Rf2 {[%clk 0:00:48]} 24... Nxb3 {[%clk
0:00:46.5]} 25. cxb3 {[%clk 0:00:47.1]} 25... Bxe4+ {[%clk 0:00:44.5]} 26. Nxe4
{[%clk 0:00:46]} 26... Rxb5 {[%clk 0:00:44.5]} 27. Qa4 {[%clk 0:00:45.5]} 27...
Ne5 {[%clk 0:00:38.6]} 28. Nc3 {[%clk 0:00:41.8]} 28... Rbb8 {[%clk 0:00:33.5]}
29. Qxd7 {[%clk 0:00:40.4]} 29... Nxd7 {[%clk 0:00:33.2]} 30. Nd5 {[%clk
0:00:40.3]} 30... Re8 {[%clk 0:00:31.5]} 31. b4 {[%clk 0:00:40]} 31... Ne5
{[%clk 0:00:29.4]} 32. Rc2 {[%clk 0:00:38.8]} 32... Kf8 {[%clk 0:00:24.6]} 33.
Rdc1 {[%clk 0:00:36.1]} 33... e6 {[%clk 0:00:23.9]} 34. Nc7 {[%clk 0:00:35.6]}
34... Red8 {[%clk 0:00:18.9]} 35. Bf4 {[%clk 0:00:35.3]} 35... Nd3 {[%clk
0:00:14.1]} 36. Rf1 {[%clk 0:00:34.1]} 36... Nxf4 {[%clk 0:00:13.6]} 37. Rxf4
{[%clk 0:00:34]} 37... Ke7 {[%clk 0:00:12.5]} 38. Rcf2 {[%clk 0:00:32.5]} 38...
Rf8 {[%clk 0:00:12.2]} 39. Rc4 {[%clk 0:00:23.1]} 39... Be5 {[%clk 0:00:10.9]}
40. Na6 {[%clk 0:00:21.9]} 40... Rbc8 {[%clk 0:00:08.2]} 41. Rxc8 {[%clk
0:00:20]} 41... Rxc8 {[%clk 0:00:07.6]} 42. b5 {[%clk 0:00:20.9]} 42... Bd4
{[%clk 0:00:02.4]} 43. Rd2 {[%clk 0:00:19.8]} 1-0